Cogmind - Beta 17 @@@ ROGUE MODE // 2026.07.04 @ 17:44:42 Player: ginkogruen Result: Self-destructed Performance ------------- Evolutions (2) 1000 Regions Visited (3) 600 Robots Destroyed (42) 210 Value Destroyed (1333) 1333 Prototype IDs (1) 20 Alien Tech Used (0) 0 Bonus (0) 0 TOTAL SCORE: 3163 Bonus ------- None Cogmind --------- Core Integrity 239/550 Matter 38/300 Energy 160/160 System Corruption 3% Temperature Cool (0) Movement Core (100) Ox1 Location -8/Materials Parts ------- > --- POWER (1) -------- Light Nuclear Core > --- PROPULSION (4) --- (None) > --- UTILITY (4) ------ Improved Sensor Array Signal Interpreter > --- WEAPON (2) ------- (None) > --- INVENTORY (5) ---- Improved Ion Engine Nuclear Core Recoil Stabilizer Particle Cannon High-powered Shotgun Peak State ------------ > --- POWER ------------ Nuclear Core > --- PROPULSION ------- Armored Treads Aluminum Leg Aluminum Leg Carbon-fiber Leg > --- UTILITY ---------- Medium Storage Unit Improved Sensor Array Improved Targeting Computer Improved Light Armor Plating > --- WEAPON ----------- High-powered Shotgun Assault Cannon > --- INVENTORY -------- Improved Ion Engine Light Nuclear Core Aluminum Leg Small Storage Unit Signal Interpreter Recoil Stabilizer Particle Cannon Particle Cannon Particle Cannon Improved Assault Rifle [Rating: 28] Favorites ----------- Power Ion Engine Engine Ion Engine Power Core Nuclear Core Propulsion Aluminum Leg Treads Armored Treads Leg Aluminum Leg Wheel Wheel Hover Unit Hover Unit Flight Unit Flight Unit Utility Medium Storage Unit Device Improved Sensor Array Storage Medium Storage Unit Processor Improved Targeting Computer Protection Improved Light Armor Plating Weapon Particle Cannon Energy Gun Medium Laser Energy Cannon Particle Cannon Ballistic Gun Assault Rifle Ballistic Cannon Assault Cannon Launcher Mini Grenade Launcher Special Melee Weapon Datajack Build | -11 -10 -9 -8 ------- Run | Yrd Mat Mat Mat Slots Evolved 4 | . . 2 2 Power . | . . . . Propulsion 2 | . . 2 . Utility 2 | . . . 2 Weapon . | . . . . Parts Attached 53 | 6 9 20 18 Power 7 | 1 2 2 2 Engine 4 | 1 1 2 . Core 3 | . 1 . 2 Reactor . | . . . . Propulsion 20 | 2 5 8 5 Treads 1 | . . . 1 Leg 13 | . 2 7 4 Wheel 3 | 2 . 1 . Hover 1 | . 1 . . Flight 2 | . 2 . . Utility 9 | 1 . 3 5 Device 2 | . . . 2 Storage 2 | 1 . 1 . Processor 2 | . . 1 1 Hackware . | . . . . Protection 3 | . . 1 2 Artifact . | . . . . Weapon 17 | 2 2 7 6 Energy Gun 5 | 1 1 3 . Energy Cannon 2 | . . 2 . Ballistic Gun 4 | 1 . 1 2 Ballistic Cannon 2 | . . 1 1 Launcher 3 | . . . 3 Special Weapon . | . . . . Impact Weapon . | . . . . Slashing Weapon . | . . . . Piercing Weapon . | . . . . Special Melee Weapon 1 | . 1 . . Unidentified Prototypes 1 | . . 1 . Parts Lost 31 | . 4 13 14 Power 3 | . 2 1 . Propulsion 14 | . 1 7 6 Utility 5 | . . 1 4 Weapon 9 | . 1 4 4 Highest Loss Streak 12 | . 1 7 12 To Critical Strikes . | . . . . Average Backups 7 | 1 6 8 8 Power 1 | . 1 1 1 Propulsion 2 | 1 3 2 . Utility 1 | . . 3 2 Weapon 2 | . 1 1 4 Tool/Special . | . . . . Unused Backups 3 | . 1 . 2 Power . | . . . . Propulsion 1 | . 1 . . Utility . | . . . . Weapon 2 | . . . 2 Tool/Special . | . . . . Average Slot Usage (%) 87 | . 81 88 94 Engine 7 | . 11 10 . Core 3 | . 1 . 8 Treads 1 | . . . 5 Leg 18 | . 4 22 27 Wheel 6 | . 8 10 . Hover 1 | . 4 . . Flight 6 | . 10 7 1 Device 2 | . . . 7 Storage 11 | . 14 11 8 Processor 3 | . . 2 8 Protection 3 | . . 3 8 Energy Gun 6 | . 8 10 . Energy Cannon 3 | . . 2 7 Ballistic Gun 4 | . 12 . 2 Ballistic Cannon 1 | . . 2 3 Launcher 1 | . . . 4 Special Melee Weapon 3 | . 5 3 . Peak Build Rating 28 | 6 7 15 28 Average Rating 13 | 4 5 11 23 On Entrance 6 | . 6 5 13 Avg Prop Armor Cover (%) 5 | . 3 3 8 Naked Turns . | . . . . Heaviest Build 30 | 14 14 25 30 Greatest Support 45 | 26 26 40 45 Greatest Overweight (x) 4 | 1 4 1 2 Average Overweight (x) . | . . . . Largest Inventory Capacity 10 | 8 8 10 10 Average Capacity 9 | 6 8 9 9 Most Carried 10 | 4 8 10 10 Average Carried 7 | 1 6 8 9 Final Capacity 10 | 8 8 10 5 Final Carried 9 | 4 7 9 5 Class Distribution -------------------- 87% | Mutant 12% | Scavenger-Mutant Dominant Class ---------------- Mutant | -10/Materials Mutant | -9/Materials Mutant | -8/Materials Resources | -11 -10 -9 -8 ----------- Run | Yrd Mat Mat Mat Matter Collected 1041 | 249 168 324 300 Remotely . | . . . . Salvage Created 1499 | . 267 498 734 Parts 70 | . 11 20 39 Haulers Intercepted . | . . . . Recyclers Shooed 3 | . 1 . 2 Parts Field Recycled . | . . . . Retrieved Matter . | . . . . Parts Self-Destructed . | . . . . Prevented . | . . . . Parts Restored . | . . . . Kills | -11 -10 -9 -8 ------- Run | Yrd Mat Mat Mat Combat Hostiles Destroyed 33 | . 6 13 14 Guns 17 | . 6 10 1 Cannons 8 | . . 2 6 AOE 7 | . . . 7 Classes Destroyed 9 | . 1 2 6 Worker 2 | . . . 2 Builder 1 | . . . 1 Tunneler 1 | . . . 1 Recycler 3 | . . . 3 Watcher 2 | . . . 2 Swarmer 5 | . . 2 3 Grunt 22 | . 6 10 6 Sentry 5 | . . 1 4 Hunter 1 | . . . 1 Best Kill Streak 9 | . 2 7 9 Combat Bots Only 7 | . 2 7 5 Max Kills in Single Turn 3 | . 1 1 3 Gunslinging . | . . . . Exploded 2 | . . . 2 Melee . | . . . . Uniques/NPCs Destroyed . | . . . . Combat | -11 -10 -9 -8 -------- Run | Yrd Mat Mat Mat Hostile Shots Fired 445 | . 53 221 171 Missed 150 | . 17 75 58 Hits 295 | . 36 146 113 Projectile 295 | . 36 146 113 Critical Strikes 6 | . . 2 4 Damage Taken 4302 | . 569 1762 1971 Core 825 | . 157 357 311 Absorbed by Shields . | . . . . Regen/Repaired (Parts) 66 | . . . 66 Core Remaining (%) 49 | 100 37 10 . Volleys Fired 123 | . 28 53 42 Largest 2 | . 2 2 2 Hottest 136 | . 70 105 136 Shots Fired 205 | . 50 79 76 Gun 124 | . 50 68 6 Cannon 55 | . . 11 44 Launcher 26 | . . . 26 Special . | . . . . Kinetic 74 | . 26 21 27 Thermal 105 | . 24 58 23 Explosive 26 | . . . 26 Electromagnetic . | . . . . Robot Hit Streak 13 | . 13 12 13 Robot Miss Streak 3 | . 1 2 3 Penetration Max . | . . . . Secondary Targets 1 | . 1 . . Max Gunslinging Chain 1 | . 1 . . Shots Hit Robots 146 | . 44 57 45 Core Hits 78 | . 14 22 42 Critical Kills . | . . . . Critical Parts Destroyed . | . . . . Critical Strikes 10 | . 5 5 . Burn 10 | . 5 5 . Melee Attacks 9 | . 9 . . Impact . | . . . . Slashing . | . . . . Piercing . | . . . . Sneak Attacks 3 | . 3 . . Combat Hostiles . | . . . . Follow-up Attacks . | . . . . Damage Inflicted 3162 | . 507 779 1876 Guns 1238 | . 507 686 45 Cannons 664 | . . 89 575 Explosions 1256 | . . . 1256 Melee . | . . . . Ramming 4 | . . 4 . Kinetic 754 | . 257 230 267 Thermal 1148 | . 250 545 353 Explosive 1256 | . . . 1256 Electromagnetic . | . . . . Impact . | . . . . Slashing . | . . . . Piercing . | . . . . Highest Corruption 3 | . 2 . 3 Average Corruption 2 | . 2 . 3 Corruption Purged . | . . . . Corruption Blocked . | . . . . Effects 1 | . . . 1 Heat Flow Errors 1 | . . . 1 Overload Shots . | . . . . Overflow Damage 58 | . . 12 46 Projectiles 28 | . . 12 16 Explosions 30 | . . . 30 Melee . | . . . . Knockbacks 2 | . . 1 1 Impact . | . . . . Kinetic 2 | . . 1 1 Secondary . | . . . . Self-Inflicted Damage 225 | . . . 225 Shots 8 | . . . 8 Rammed . | . . . . Targets Rammed 3 | . . 3 . Kicked 3 | . . 3 . Crushed . | . . . . Highest Temperature 399 | . 148 325 399 Average Temperature 106 | . 49 113 131 Received Heat Transfer 1524 | . 243 714 567 Effects 7 | . . . 7 Shutdowns 2 | . . . 2 Interference 4 | . . . 4 Damage (minor) 1 | . . . 1 Siege Activations . | . . . . Martial Activations . | . . . . Shielding Activations . | . . . . Robots Disrupted . | . . . . Combat Hostiles . | . . . . Robots Corrupted . | . . . . Combat Hostiles . | . . . . Parts Fried . | . . . . Impact Corruptions . | . . . . Robots Melted 1 | . . 1 . Combat Hostiles 1 | . . 1 . Parts Melted 11 | . 5 6 . Heat Transferred 3448 | . 1110 1709 629 Parts Sabotaged . | . . . . Parts Stolen . | . . . . Parts Stripped . | . . . . Power Chain Reactions . | . . . . Alert | -11 -10 -9 -8 ------- Run | Yrd Mat Mat Mat Maximum Alert Level 1 | . . . 1 Low Security (%) 91 | 100 100 100 74 Level 1 8 | . . . 25 Level 2 . | . . . . Level 3 . | . . . . Level 4 . | . . . . Level 5 . | . . . . High Security . | . . . . Max Security . | . . . . Peak Influence 344 | . 56 175 344 Initial 57 | . . . 57 Average 72 | . 11 96 114 Influence Increases 1211 | . 166 467 578 Destroy 0b10 Robot/C 660 | . 120 260 280 Destroy 0b10 Robot/NC 45 | . . . 45 Destroy Leader 174 | . 30 60 84 Successful Hack 14 | . . 12 2 Disable Machine 45 | . . . 45 Destroy Structure 123 | . 1 . 122 Partial Spotted 15 | . 15 . . Lose Combat Pursuer 135 | . . 135 . Influence Decreases 957 | . 166 329 462 Entered New Map 81 | . . . 81 Time Decay 577 | . 134 202 241 Lost Part 299 | . 32 127 140 Squads Dispatched 7 | . 1 3 3 Investigation 1 | . . 1 . Extermination . | . . . . Reinforcement 6 | . 1 2 3 Assault . | . . . . Garrison . | . . . . Intercept . | . . . . Searches Triggered . | . . . . Construction Impeded 1 | . . . 1 Haulers Reinforced . | . . . . Active Scanning Responses . | . . . . Cargo Convoy Interrupts . | . . . . Stealth | -11 -10 -9 -8 --------- Run | Yrd Mat Mat Mat Distress Signals 10 | . 1 4 5 Communications Jammed . | . . . . Distress Signals . | . . . . Times Spotted 82 | . 12 31 39 Peak Tracking Total 16 | . 5 11 16 Tactical Retreats 4 | . . 4 . Traps | -11 -10 -9 -8 ------- Run | Yrd Mat Mat Mat Traps Triggered 2 | . 1 . 1 Indirectly . | . . . . Trap Hack Attempts . | . . . . Triggered . | . . . . Disarmed . | . . . . Reprogrammed . | . . . . Reused . | . . . . Traps Extracted . | . . . . Installed . | . . . . Triggered . | . . . . Machines | -11 -10 -9 -8 ---------- Run | Yrd Mat Mat Mat Machines Disabled 3 | . . . 3 Max in Single Turn 1 | . . . 1 Machines Repaired . | . . . . Machines Dismantled . | . . . . Machines Sabotaged . | . . . . Overloaded Fab Kills . | . . . . Hacking | -11 -10 -9 -8 --------- Run | Yrd Mat Mat Mat Machines Accessed 4 | . . 1 3 Terminals 1 | . . . 1 Fabricators . | . . . . Repair Stations 1 | . . . 1 Recycling Units . | . . . . Scanalyzers 2 | . . 1 1 Garrison Access . | . . . . Total Hacks 10 | . . 3 7 Successful 5 | . . 1 4 Failed 5 | . . 2 3 Catastrophic . | . . . . Database Lockouts . | . . . . Manual . | . . . . Terminals 2 | . . . 2 Fabricators . | . . . . Repair Stations 4 | . . . 4 Recycling Units . | . . . . Scanalyzers 4 | . . 3 1 Garrison Access . | . . . . Terminal Hacks 1 | . . . 1 Record 1 | . . . 1 Fabricator Hacks . | . . . . Repair Station Hacks 3 | . . . 3 Scan Component 2 | . . . 2 Repair 1 | . . . 1 Recycling Unit Hacks . | . . . . Scanalyzer 1 | . . 1 . Retrieve Study 1 | . . 1 . Garrison Access Hacks . | . . . . Unauthorized Hacks . | . . . . Terminals . | . . . . Fabricators . | . . . . Repair Stations . | . . . . Recycling Units . | . . . . Scanalyzers . | . . . . Garrison Access . | . . . . Data Cores Recovered . | . . . . Used . | . . . . Hacking Detections 3 | . . 1 2 Full Trace Events 1 | . . 1 . Feedback Events . | . . . . Feedback Blocked . | . . . . Robot Schematics Acquired . | . . . . Robots Built . | . . . . Authchips . | . . . . Time . | . . . . Total Robot Build Rating . | . . . . Part Schematics Acquired . | . . . . Parts Built . | . . . . Authchips . | . . . . Time . | . . . . Total Part Build Rating . | . . . . Part Studies Acquired 1 | . . 1 . Parts Repaired 1 | . . . 1 Time 32 | . . . 32 Parts Recycled . | . . . . Recycled Matter . | . . . . Retrieved Matter . | . . . . Retrieved Components . | . . . . Parts Scanalyzed . | . . . . Part Schematics Acquired . | . . . . Parts Damaged . | . . . . Bothacking | -11 -10 -9 -8 ------------ Run | Yrd Mat Mat Mat Used RIF Installer . | . . . . Robots Hacked 3 | . 3 . . Non-combat 3 | . 3 . . Combat . | . . . . Robot Hacks Applied 4 | . 4 . . parse_system 2 | . 2 . . no_distress 1 | . 1 . . check_alert 1 | . 1 . . Relay Couplers Released . | . . . . Fabnet Peak Effective % . | . . . . Robots Rewired . | . . . . Allies Hacked . | . . . . Hacks Repelled . | . . . . Allies | -11 -10 -9 -8 -------- Run | Yrd Mat Mat Mat Total Allies . | . . . . Largest Group . | . . . . Highest-Rated Group . | . . . . Highest-Rated Ally . | . . . . Total Orders . | . . . . Ally Attacks . | . . . . Total Damage . | . . . . Kills . | . . . . Allies Corrupted . | . . . . Allies Melted . | . . . . Intel | -11 -10 -9 -8 ------- Run | Yrd Mat Mat Mat Active Infowar (turns) 334 | . . . 334 Sensors 334 | . . . 334 Robot Analysis Total . | . . . . Derelict Logs Recovered . | . . . . Drone Launches . | . . . . Drone Recoveries . | . . . . Exploration | -11 -10 -9 -8 ------------- Run | Yrd Mat Mat Mat Turns Passed 1737 | 49 552 572 564 Spaces Moved 1031 | 41 328 375 287 Core 13 | 5 4 . 4 Treads . | . . . . Legs 557 | . 92 182 283 Wheels 363 | 36 134 193 . Hover 70 | . 70 . . Flight 28 | . 28 . . Fastest Speed 37 | 50 37 85 100 Average Speed 117 | 88 130 103 122 Slowest Speed 250 | 100 250 190 190 Overloaded Moves . | . . . . Propulsion Burnouts . | . . . . Robots Hopped . | . . . . Potential Cave-ins 5 | . . . 5 Cave-ins Triggered 1 | . . . 1 Exploration Rate (%) 33 | 4 46 33 51 Regions Visited 3 Branch Regions . Pre-discovered Areas . | . . . . Known Exits Taken . | . . . . Unknown Exits Taken 3 | 1 1 1 . Scrap Searched . | . . . . Spaces Dug 23 | . . . 23 Terrain Destroyed 194 | . . . 194 Melee . | . . . . Projectile 6 | . . . 6 AOE 188 | . . . 188 Terrain Rammed . | . . . . Walls Destroyed . | . . . . Machines Disabled . | . . . . Actions | -11 -10 -9 -8 --------- Run | Yrd Mat Mat Mat Total 1338 | 50 395 471 422 Wait 62 | . 9 3 50 Move 1028 | 40 327 374 287 Hop . | . . . . Pick Up 30 | 4 6 10 10 Fast Attach 11 | 6 1 2 2 Attach 23 | . 2 14 7 Detach . | . . . . Swap 35 | . 10 12 13 Drop 14 | . 3 . 11 Fire 123 | . 28 53 42 Melee 9 | . 9 . . Ram . | . . . . Kick 3 | . . 3 . Crush . | . . . . Escape Stasis . | . . . . Rewire . | . . . . Trap . | . . . . Miscellaneous . | . . . . Route ------- -11/Scrapyard -10/Materials (discovered 2 exits: *Mat / [*Min]) -9/Materials -8/Materials History --------- Turn | Location | Event 2 | -11/Scrapyard | Met Revision 17 5 | -11/Scrapyard | Discovered new exit (range 15) 50 | -11/Scrapyard | Entered Materials 63 | -10/Materials | Discovered new exit (range 16) 308 | -10/Materials | Build established: Mutant 508 | -10/Materials | Discovered new exit (range 15) 522 | -10/Materials | Core integrity fell below 50% 602 | -10/Materials | Entered another Materials area 602 | -9/Materials | Evolved 2 slots: Propulsion x2 888 | -9/Materials | Lost 7 parts (3n1u3w) 899 | -9/Materials | Destroyed 7 combat bots 909 | -9/Materials | Core integrity fell below 50% 1087 | -9/Materials | Core integrity fell below 20% 1123 | -9/Materials | Lost 4 parts (3n1w) 1162 | -9/Materials | Discovered new exit (range 11) 1174 | -9/Materials | Entered another Materials area 1174 | -8/Materials | Evolved 2 slots: Utility x2 1229 | -8/Materials | Repaired Imp. Ion Engine 1634 | -8/Materials | Crushed by falling debris 1737 | -8/Materials | Core integrity fell below 50% 1738 | -8/Materials | Self-destructed Last Messages --------------- 01666_ Rocket Launcher destroyed. 01666_ O-16 Technician uses terminal to summon reinforcements. 01666_ ALERT: Hostiles spotted, dispatching reinforcements to Terminal M011. 01666_ O-16 Technician locks terminal. 01668_ K-01 Serf collects debris. 01693_ Critical hit (Burn: +37). 01693_ Med. Storage Unit destroyed. 01698_ Processing Tank disabled. 01702_ Lgt. Armor Plating destroyed. 01705_ Grenade Launcher destroyed. 01710_ W-25 Informer sends out distress signal. 01721_ K-01 Serf destroyed. 01724_ Acquired 23 matter. 01724_ Critical hit (Burn: +37). 01730_ Aluminum Leg destroyed. 01732_ Carbon-fiber Leg destroyed. 01734_ Arm. Treads destroyed. 01734_ W-25 Informer sends out distress signal. 01735_ Minigun destroyed. Map ----- +----------------------------------------------------+ | ? ?### ###??????# # # #????????? | | ?"" # * ######## # # """"" #????????? | | ?"" # T%= # """ + "" "" #????????? | | ?"" "" #! """ # "" #????????? | | ??? = # """ # #????????? | | ????# =!%### # # #????????? | | ????# =% ## #"T"### # ###+#????????? | | ????# # ##### ######## #????????? | | ???## ###### #????????? | | ???# # ???????? | | ???# + ???? | | ???## #! # w ^ # ???? | | ????# # ############# Y ^ / ""? ???? | | ????# # ##???????????# Yg ####+##### "G?????? | | ????## #????????????####g##### #???"?????? | | ###### ##????????????# gs / #?????????? | | [ ##????????????# # #?????????? | | # ##???????????# s = #????????????????? | | " " ###?????????# = #????????????????? | | "R" # #?????????# #????????????????? | | """ ] ## #?????????# #????????????????? | | #?????????# s #????????????????? | | # ## # ##?????????# #????????????????? | | ##? # #??????????# s #????????????????? | | ??# # #??????????##s#######????????????????? | | ??# % #???????????#@#??????????????????????? | | ### # #???????????#s#??????????????????????? | | ????????????# #??????????????????????? | | ????? ??????????????????????? | | ######??????? ??????????????????????? | | ##### #???????????? ??????????????????????? | | ???#### ##???????????? ??????????????????????? | | ????# # ####??????????? ?????????????????????? | | ????#####?????????????? ?????????????????????? | | ??????????????????????? ?????????????????????? | | ??????????????????????? ?????????????????????? | | ??????????????????????# x???????????????????? | | ?#######??????????x???# ????????????????????? | | ? ???????????????# ????????????????????? | | ? ! ?????????????? """ ????????????????????? | | ???????????????? ????????????????????????? | | ???????????????????????????????????????????? | | """ ""??????????????????????????????????????????? | | """ ""??????????????????????????????????????????? | | """ """ #???????????????????????????????????????? | | #???????????????????????????????????????? | | ########????????????????????????????????????????? | | ] #???????????????##??????????????????????????? | | """ #???????????????# #############?????????????? | | """ #???????????????# [ # #?????????????? | +----------------------------------------------------+ Best States ------------- Heat Dissipation 31 Energy Generation 14 Energy Capacity 265 Matter Stores 300 Matter Capacity 300 Sight Range 16 Robot Scan Range 15 Terrain Scan Density 10 Armor Coverage 150 Evasion (%) 62 Targeting Accuracy 6 Recoil Reduction 4 Item Schematics ----------------- None Robot Schematics ------------------ None Fabricated ------------ Nothing Repaired ---------- Imp. Ion Engine | 5% | -8/Materials Studied --------- Com. Wheel | -9/Materials | Hacked Alien Tech Used ----------------- None Achievements -------------- None Challenges ------------ None Game ------ Seed SensorScimitarKatana Manual? 0 Play Time 00:30:04 Cumulative 28.6 hours Start 2026.07.04 @ 17:15:11 End 2026.07.04 @ 17:44:42 Sessions 1 Manual Loads 0 Difficulty Rogue Special Mode None Game No. 39 Rogue 21 Adventurer 18 Explorer 0 Win Type - Total 0 Types 0/0/0/0/0/0/0/0/0/0 Lore% 22 Gallery% 18 Achievement% 16 Wizard Run 0 Options --------- Layout 0 ASCII 0 Keyboard 1 Movement Vi Keybinds 0 Fullscreen 1 Font 24/Terminus Map View 76x50 Zoom Use 0% Tactical HUD 1 Map Filters NONE Filters NONE Steam 1 RUN: e2255e6f-9199-43c5-a276-954354b924b0